[Event "44th Chess Olympiad Open 2022"]
[Site "Chennai"]
[Date "2022.08.01"]
[Round "4.11"]
[White "Pechac, Jergus"]
[Black "Korobov, Anton"]
[Result "1-0"]
[WhiteElo "2594"]
[BlackElo "2692"]
[Annotator "TA"]
[PlyCount "65"]
[EventDate "2022.??.??"]
[TimeControl "60"]

{[%evp 13,65,8,24,6,0,0,12,-4,29,20,43,0,35,12,14,14,27,25,48,30,46,30,41,49,
55,89,85,72,121,129,129,75,202,199,172,208,201,210,166,195,199,193,381,406,424,
412,481,470,670,670,670,670,6311,2069]} 1. d4 {[%emt 0:00:08]} Nf6 {[%emt 0:00:
00]} 2. c4 {[%emt 0:00:08]} e6 {[%emt 0:00:07]} 3. Nf3 {[%emt 0:00:17]} Bb4+ {
[%emt 0:00:16]} 4. Nc3 {[%emt 0:02:26]} b6 {[%emt 0:00:36]} 5. e3 {[%emt 0:00:
00]} Bb7 {[%emt 0:00:41]} 6. Bd3 {[%emt 0:00:08]} O-O {[%emt 0:00:28]} 7. O-O {
[%emt 0:00:08]} c5 {[%emt 0:00:11]} 8. Re1 {[%emt 0:00:31] E43: Nimzo-Indian:
Rubinstein: 4...b6.} d5 {[%emt 0:04:32]} 9. cxd5 {[%emt 0:00:28] [#]} exd5 $146
{[%emt 0:06:37]} ({Predecessor:} 9... Nxd5 10. Bd2 cxd4 11. exd4 Nc6 12. a3 Be7
13. Qc2 Nf6 14. Be3 Rc8 15. Rad1 g6 16. Bh6 Re8 17. Qe2 Qc7 18. h3 Red8 19. Bb1
Rd7 20. Ba2 Bf8 {1-0 (28) Del Rio de Angelis,S (2511)-Perez Gonzalez,J (2199)
Linares 2021}) 10. a3 {[%emt 0:04:00] The position is equal.} Ba5 {[%emt 0:00:
00]} (10... Bxc3 $5 11. bxc3 Nbd7 $11) 11. Bd2 {[%emt 0:07:00][%cal Yb2b4]} c4
{[%emt 0:02:33] White must now prevent ...Bxc3.} 12. Bc2 {[%emt 0:06:21]} (12.
b4 $5 Bxb4 13. axb4 (13. Bxh7+ Nxh7 14. axb4 Re8 $14) 13... cxd3 14. Ne5 $11)
12... Nbd7 {[%emt 0:01:44]} 13. Ne5 {[%emt 0:04:50]} Re8 {[%emt 0:05:00]} 14.
f4 {[%emt 0:02:22]} a6 {[%emt 0:05:52]} 15. a4 {[%emt 0:04:48]} Rc8 {[%emt 0:
00:00]} 16. Rf1 {[%emt 0:03:58]} Qe7 {[%emt 0:04:30]} 17. Be1 {[%emt 0:01:15]}
Ne4 {[%emt 0:13:08]} 18. Nxe4 {[%emt 0:03:36]} dxe4 {[%emt 0:03:15]} 19. b4 {
[%emt 0:06:33]} Nxe5 {[%emt 0:02:48]} 20. bxa5 {[%emt 0:00:44]} Nc6 {[%emt 0:
00:00]} (20... Nd7 $142) 21. axb6 $16 {[%emt 0:02:59]} a5 {[%emt 0:03:07]} 22.
d5 {[%emt 0:04:39]} (22. f5 $142) 22... Nb4 {[%emt 0:03:04] A mistake that
costs the game.} (22... Rcd8 $16) 23. d6 $18 {[%emt 0:03:31]} Qd7 {[%emt 0:00:
00]} 24. Bxb4 {[%emt 0:00:06]} axb4 {[%emt 0:00:05]} 25. a5 {[%emt 0:00:05]
[%cal Ya4a5,Ya5a6,Ya6a7]} b3 {[%emt 0:01:33] [#]} 26. Bxb3 {[%emt 0:00:00]}
cxb3 {[%emt 0:00:24] [#]} 27. a6 $1 {[%emt 0:00:09]} Bc6 {[%emt 0:18:03]} (
27... b2 28. axb7 Qxb7) 28. Qxb3 {[%emt 0:15:50]} Qxd6 {[%emt 0:00:10]} 29.
Rfc1 {[%emt 0:01:02]} Rcd8 {[%emt 0:05:23]} 30. b7 {[%emt 0:01:08] White is
clearly winning.} Qg6 {[%emt 0:02:33] [#]} (30... Bxb7 $142 31. axb7 Rb8) 31.
Rxc6 $1 {[%emt 0:06:16] Promotion} Qxc6 {[%emt 0:00:02]} 32. a7 {[%emt 0:00:08]
Prevents Rb8.} Rd3 {[%emt 0:02:13]} 33. Qb4 {[%emt 0:03:00] Weighted Error
Value: White=0.07 (flawless) /Black=0.40} (33. Qb2 $142 Rdd8 34. b8=Q) 1-0

[Event "44th Chess Olympiad Open 2022"]
[Site "Chennai"]
[Date "2022.08.01"]
[Round "4.11"]
[White "Druska, Juraj"]
[Black "Kuzubov, Yuriy"]
[Result "0-1"]
[WhiteElo "2519"]
[BlackElo "2642"]
[Annotator "TA"]
[PlyCount "126"]
[EventDate "2022.??.??"]
[TimeControl "60"]

{[%evp 14,126,0,0,0,0,0,0,0,8,10,-4,0,0,0,0,0,0,0,0,0,0,15,13,16,12,10,8,15,19,
13,7,22,0,0,0,90,87,95,83,182,162,186,167,216,221,839,314,350,396,442,427,1229,
1211,776,0,0,0,0,-39,-40,-47,-47,-48,-48,-48,-8,-8,-15,-200,-200,-192,-192,
-192,-192,-192,-171,-173,-130,-258,-258,-842,-130,-573,-547,-500,-439,-1443,
-2150,-2097,-2090,-1868,-1852,-2147,-1860,-1852,-1852,-1571,-1443,-2273,-1297,
-29962,-12609,-29971,-29972,-29975,-29976,-29977,-29978,-29978,-29979,-29979,
-29980,-29978,-12363]} 1. e4 {[%emt 0:00:13]} e5 {[%emt 0:00:06]} 2. Nf3 {
[%emt 0:00:10]} Nf6 {[%emt 0:00:07]} 3. d4 {[%emt 0:00:10]} Nxe4 {[%emt 0:00:
00]} 4. Bd3 {[%emt 0:00:10]} d5 {[%emt 0:00:05]} 5. Nxe5 {[%emt 0:00:23]} Nd7 {
[%emt 0:00:08]} 6. Nc3 {[%emt 0:00:14]} Nxe5 {[%emt 0:01:00]} 7. dxe5 {[%emt 0:
00:00]} Nxc3 {[%emt 0:00:06]} 8. bxc3 {[%emt 0:00:05]} Bc5 {[%emt 0:00:05] C43:
Petroff Defence: 3 d4.} 9. O-O {[%emt 0:00:30]} O-O {[%emt 0:00:07] The main
line 9...0-0 scores better than 9...Be6.} 10. Qh5 {[%emt 0:00:08][%csl Gd3]
[%cal Rh5h7]} g6 $1 {[%emt 0:00:14] The position is equal.} 11. Qh6 {[%emt 0:
00:00]} Re8 {[%emt 0:00:16] [#]} 12. Qf4 $146 {[%emt 0:00:06]} ({Predecessor:} 
12. Bg5 Bf8 13. Bxd8 Bxh6 14. Bxc7 Bf5 15. Bxf5 gxf5 16. Rfd1 Rac8 17. Bd6 Rxc3
18. Rxd5 Rxc2 19. a4 Rd8 20. g3 Bf8 21. Rb1 b6 22. a5 Rc6 23. axb6 axb6 {
½-½ (23) Volokitin,A (2677)-Nepomniachtchi,I (2782) Warsaw 2021}) 12... Bf8 {
[%emt 0:00:57]} 13. Qg3 {[%emt 0:00:20]} c5 {[%emt 0:00:07]} 14. Bb5 {[%emt 0:
00:00]} Bd7 {[%emt 0:00:05]} 15. Bg5 {[%emt 0:00:06]} Be7 {[%emt 0:00:13]} 16.
Bxd7 {[%emt 0:00:11]} Qxd7 {[%emt 0:00:05]} 17. Bxe7 {[%emt 0:00:05]} Qxe7 {
[%emt 0:00:07]} 18. Rae1 {[%emt 0:06:00]} Qe6 {[%emt 0:14:20]} 19. f4 {[%emt 0:
00:00]} Qf5 {[%emt 0:01:38]} 20. Qh4 {[%emt 0:04:38]} d4 {[%emt 0:27:12]} 21.
g4 {[%emt 0:31:30]} Qd7 {[%emt 0:00:10]} 22. Rf3 {[%emt 0:14:48][%cal Yf1f3,
Yf3h3,Yh3d3,Yd3c3]} dxc3 {[%emt 0:02:24]} 23. Rh3 {[%emt 0:17:12]} (23. Rd3 $5
{[%cal Rd3d7]} Qa4 24. Rh3 Qd4+ 25. Kh1 Qd5+ 26. Kg1 Qd4+ 27. Kg2 Qd2+ 28. Kf3
Qd5+ 29. Kf2 Qd2+ 30. Kf3 Qd5+ 31. Kg3 $11) 23... f6 {[%emt 0:00:00] Active
counter play!} (23... h5 24. gxh5 Re6 25. Rd3 $16 (25. Rxc3 Rae8 $16) (25. hxg6
Rxg6+ 26. Kf1 Kf8 $16)) 24. Rd3 {[%emt 0:06:09]} Qf7 {[%emt 0:00:00]} (24...
Qe7 $11 {keeps the balance.}) 25. Red1 $1 $16 {[%emt 0:03:51]} g5 {[%emt 0:23:
57]} 26. fxg5 {[%emt 0:00:02]} Rxe5 {[%emt 0:00:39]} (26... fxg5 $16 {was
called for.} 27. Qxg5+ Qg6) 27. gxf6 $18 {[%emt 0:02:05] Intending Rd8+ and
mate.} Rae8 {[%emt 0:00:48]} 28. Rxc3 {[%emt 0:03:07]} h5 {[%emt 0:14:18]} (
28... Rf8 {keeps fighting.}) 29. Rcd3 {[%emt 0:02:54]} Qc4 $2 {[%emt 0:04:04]}
(29... a6 30. Rf1 c4) 30. Rf1 $2 {[%emt 0:02:14]} (30. Rd7 {Black must now
prevent f7+.} Rf8 31. Qg3) 30... Kf7 {[%emt 0:01:48]} 31. h3 {[%emt 0:05:58]
Threatens to win with Rd7+.} (31. Rd7+ Ke6 32. Rg7 (32. Rxb7 Qd4+ 33. Qf2 Qxg4+
34. Qg2 Qxg2+ 35. Kxg2 Rf8 $18) (32. Re7+ Rxe7 33. fxe7 Qd4+ 34. Kh1 Qe4+ 35.
Kg1 Qd4+ 36. Kh1 Kd7 $11) 32... Qd4+ 33. Qf2 hxg4 $18) 31... Rd5 {[%emt 0:00:
00] Inhibits Rd7+.} 32. Qg3 {[%emt 0:01:26]} Rxd3 {[%emt 0:00:30]} (32... Ree5
$142 33. Re1 (33. gxh5 $2 Rg5 $19) 33... Rxd3 34. Qxe5 Qd4+ 35. Qxd4 Rxd4) 33.
Qc7+ {[%emt 0:00:30] Zwischenzug, Double Attack} ({Not} 33. cxd3 Qd4+ 34. Rf2
Re1+ 35. Kg2 (35. Kh2 Qe5 $14) 35... Qd5+ 36. Qf3 Qxf3+ 37. Rxf3 (37. Kxf3
hxg4+ 38. Kxg4 Rg1+ 39. Kf5 Rg3 $11) 37... hxg4 38. hxg4 Re8 $16) (33. Qxd3
Qxd3 34. cxd3 hxg4 35. hxg4 Rd8 $11) 33... Ke6 {[%emt 0:00:15]} 34. Re1+ $2 {
[%emt 0:00:17]} (34. cxd3 $18 Qc3 35. f7 Qd4+ 36. Kh1) 34... Kxf6 $11 {[%emt 0:
00:23]} 35. Rf1+ {[%emt 0:00:10]} Kg6 {[%emt 0:00:49]} 36. cxd3 {[%emt 0:01:04]
Endgame KQR-KQR} Qd4+ {[%emt 0:00:11]} 37. Kh1 {[%emt 0:00:23]} Qd5+ {[%emt 0:
00:25]} 38. Kg1 {[%emt 0:00:03] gxh5+ would kill now.} hxg4 {[%emt 0:00:33]
Chess con chili.} (38... Re2 {is a self mate.} 39. gxh5+ Kxh5 40. Qh7+ Kg5 41.
Qg7+ Kh5 42. Qg4+ Kh6 43. Rf6+ Kh7 44. Qg6+ Kh8 45. Qh6+ Kg8 46. Rf8#) 39. Qf4
{[%emt 0:01:05]} Qd4+ {[%emt 0:00:45]} (39... Qe6 $5 {[%cal Re6e3]} 40. hxg4
Qe3+ 41. Kg2 Qxf4 42. Rxf4 Re2+ 43. Kf3 Rxa2 $17) 40. Qxd4 {[%emt 0:00:19]}
cxd4 {[%emt 0:00:04] KR-KR} 41. Rf4 $2 {[%emt 0:14:49]} (41. hxg4 $11 {and
White stays safe.} Re3 42. a4) 41... gxh3 $19 {[%emt 0:00:34]} 42. Rxd4 {
[%emt 0:00:38]} Re1+ {[%emt 0:00:26]} 43. Kh2 {[%emt 0:00:13]} Re2+ {[%emt 0:
00:05]} 44. Kxh3 {[%emt 0:00:03]} Rxa2 {[%emt 0:00:05]} 45. Kg4 {[%emt 0:00:30]
} Rf2 {[%emt 0:02:37]} 46. Rd7 {[%emt 0:07:22]} (46. Rd8 $17 {was necessary.})
46... Rf7 {[%emt 0:00:07]} 47. Rd8 {[%emt 0:00:03] [#]} (47. Rd4) 47... b6 $2 {
[%emt 0:10:15]} (47... Kf6 $1 $19 {is more deadly.} 48. Re8 Rd7) 48. d4 $2 {
[%emt 0:08:36] [#]} (48. Ra8 $17) 48... Kf6 $1 {[%emt 0:00:14] And now ...Ke6
would win.} 49. Rd6+ {[%emt 0:01:03]} Ke7 {[%emt 0:00:22]} 50. Rh6 {[%emt 0:00:
06]} (50. Rc6 $142 Kd8 51. Kg5) 50... Kd7 {[%emt 0:00:52]} 51. d5 {[%emt 0:00:
58]} Kc7 {[%emt 0:00:48]} 52. Rc6+ {[%emt 0:00:00]} Kb7 {[%emt 0:00:04]} 53.
Rc1 {[%emt 0:01:03]} a5 {[%emt 0:05:28]} 54. Kg5 {[%emt 0:00:10]} Rd7 {[%emt 0:
02:12]} 55. Rd1 {[%emt 0:00:04]} Kc7 {[%emt 0:00:15]} 56. Rc1+ {[%emt 0:01:17]}
Kd6 {[%emt 0:01:25]} 57. Rc6+ {[%emt 0:00:05]} Kxd5 {[%emt 0:00:05]} 58. Rxb6 {
[%emt 0:00:02]} Ra7 {[%emt 0:00:00] Black mates.} ({Worse is} 58... a4 59. Ra6
$11) 59. Kf4 {[%emt 0:01:23]} a4 {[%emt 0:00:17][%cal Ya5a4,Ya4a3]} 60. Rb8 {
[%emt 0:00:33]} a3 {[%emt 0:00:33]} 61. Rd8+ {[%emt 0:00:09]} Kc4 {[%emt 0:00:
11]} 62. Rc8+ {[%emt 0:00:05]} Kb3 {[%emt 0:00:22]} 63. Rb8+ {[%emt 0:00:11]}
Ka4 {[%emt 0:00:00] Never resign too early! Weighted Error Value: White=0.77/
Black=0.23 (precise)} 0-1

[Event "44th Chess Olympiad Open 2022"]
[Site "Chennai"]
[Date "2022.08.01"]
[Round "4.12"]
[White "Berkes, Ferenc"]
[Black "Albornoz Cabrera, Carlos Daniel"]
[Result "1/2-1/2"]
[WhiteElo "2649"]
[BlackElo "2566"]
[Annotator "TA"]
[PlyCount "65"]
[EventDate "2022.??.??"]
[TimeControl "60"]

{[%evp 18,65,0,0,6,0,12,4,24,3,25,21,37,26,27,27,24,14,60,54,41,51,58,8,25,10,
25,12,13,14,23,14,18,0,11,18,30,36,22,21,43,19,12,0,0,0,0,0,0,0]} 1. d4 {
[%emt 0:00:02]} Nf6 {[%emt 0:00:05]} 2. c4 {[%emt 0:00:05]} e6 {[%emt 0:00:04]}
3. Nc3 {[%emt 0:00:07]} Bb4 {[%emt 0:00:05]} 4. e3 {[%emt 0:00:07]} O-O {
[%emt 0:00:08]} 5. Bd3 {[%emt 0:00:06]} d5 {[%emt 0:00:27]} 6. a3 {[%emt 0:00:
00]} Bxc3+ {[%emt 0:00:58]} 7. bxc3 {[%emt 0:00:07]} dxc4 {[%emt 0:00:06]} 8.
Bxc4 {[%emt 0:00:10]} c5 {[%emt 0:00:10]} 9. Nf3 {[%emt 0:00:22]} Qc7 {[%emt 0:
00:00]} 10. Be2 {[%emt 0:00:46]} b6 {[%emt 0:02:16] E53: Nimzo-Indian:
Rubinstein: Main Line (4...0-0 5 Nf3 d5 6 Bd3 c5 7 0-0).} 11. Bb2 $1 {[%emt 0:
00:00] is currently scoring better than 11.0-0.} Ba6 {[%emt 0:02:50]} 12. c4 {
[%emt 0:00:29]} Nbd7 {[%emt 0:08:07]} 13. Rc1 {[%emt 0:02:54] [#]} cxd4 $146 {
[%emt 0:03:57]} ({Predecessor:} 13... Rfd8 14. O-O Rac8 15. Re1 Bb7 16. h3 Nf8
17. Qb3 Ng6 18. Red1 cxd4 19. exd4 Qf4 {0-1 (40) Rusev,K (2548)-Capone, N 
(2373) Baku 2016}) 14. exd4 {[%emt 0:08:52]} Bb7 {[%emt 0:01:57]} 15. O-O {
[%emt 0:01:55]} Qf4 {[%emt 0:03:23]} 16. Qd2 {[%emt 0:07:24]} Qxd2 {[%emt 0:00:
00]} 17. Nxd2 {[%emt 0:00:46]} Rac8 {[%emt 0:00:56]} (17... Rfd8 $11) 18. a4
$14 {[%emt 0:03:04][%cal Ya3a4,Ya4a5]} Rfd8 {[%emt 0:24:42][%cal Yd7c5]} 19. a5
{[%emt 0:08:50]} Nb8 {[%emt 0:03:53]} 20. Nb3 {[%emt 0:08:54]} (20. Ra1 $14)
20... Ba6 {[%emt 0:01:12]} 21. Rfd1 {[%emt 0:02:39]} Ne8 {[%emt 0:00:00]} 22.
Kf1 {[%emt 0:09:34]} Nc6 {[%emt 0:06:31]} 23. axb6 {[%emt 0:04:27]} axb6 {
[%emt 0:00:05]} 24. Ra1 {[%emt 0:01:41]} Nb8 {[%emt 0:01:51]} 25. Rac1 {
[%emt 0:18:04]} (25. Nd2 {is more complex.} Nd6 26. Rxa6 Nxa6 27. c5) 25... Nc6
{[%emt 0:03:11][%cal Yb8c6,Yc6e7,Ye7f5,Yf5d6]} 26. f3 {[%emt 0:05:42]} Ne7 {
[%emt 0:04:07]} 27. Kf2 {[%emt 0:00:29]} Nd6 {[%emt 0:03:45]} 28. Ba3 {[%emt 0:
01:16]} Nef5 {[%emt 0:02:08][%cal Ra6c4]} 29. Bxd6 {[%emt 0:04:09]} (29. g4 $5
{[%cal Rg4f5]} Bxc4 30. gxf5 Bxb3 31. Bxd6 Bxd1 32. Rxc8 Rxc8 33. Bxd1 $14)
29... Nxd6 {[%emt 0:00:11] The position is equal.} 30. c5 {[%emt 0:00:00]} Bxe2
{[%emt 0:00:20]} 31. Kxe2 {[%emt 0:00:05]} Nf5 {[%emt 0:02:08]} 32. cxb6 {
[%emt 0:04:57] [#] Strongly threatening Rxc8.} Rb8 {[%emt 0:00:11]} 33. d5 {
[%emt 0:00:08] Weighted Error Value: White=0.08 (flawless) /Black=0.08 
(flawless)} 1/2-1/2

[Event "44th Chess Olympiad Open 2022"]
[Site "Chennai"]
[Date "2022.08.01"]
[Round "4.12"]
[White "Quesada Perez, Yasser"]
[Black "Erdos, Viktor"]
[Result "1-0"]
[WhiteElo "2568"]
[BlackElo "2586"]
[Annotator "TA"]
[PlyCount "89"]
[EventDate "2022.??.??"]
[TimeControl "60"]

{[%evp 23,89,-7,0,0,0,0,0,0,0,0,0,0,0,0,0,0,0,14,0,0,0,0,0,0,0,0,0,0,0,0,0,0,0,
0,22,20,56,0,0,0,0,0,0,4,102,0,0,1,285,292,814,441,703,544,358,283,12840,12840,
12842,12843,12843,12843,12844,12843,12843,12843,12842,12842]} 1. e4 {[%emt 0:
00:00]} e5 {[%emt 0:00:13]} 2. Nf3 {[%emt 0:00:07]} Nc6 {[%emt 0:00:05]} 3. Bc4
{[%emt 0:00:04]} Nf6 {[%emt 0:01:50]} 4. d4 {[%emt 0:00:09]} exd4 {[%emt 0:00:
00]} 5. e5 {[%emt 0:00:05]} d5 {[%emt 0:03:48]} 6. Bb5 {[%emt 0:00:09]} Ne4 {
[%emt 0:07:43]} 7. Nxd4 {[%emt 0:00:19]} Bd7 {[%emt 0:00:09]} 8. Bxc6 {[%emt 0:
00:00]} bxc6 {[%emt 0:00:14]} 9. O-O {[%emt 0:00:12]} Be7 {[%emt 0:00:46]} 10.
f3 {[%emt 0:06:15]} Nc5 {[%emt 0:01:38]} 11. f4 {[%emt 0:01:10]} O-O {[%emt 0:
00:00]} 12. f5 {[%emt 0:02:12]} Ne4 {[%emt 0:00:40]} 13. Nc3 {[%emt 0:00:13]
Strongly threatening Nxe4. C56: Two Knights: 4 d4 exd4 5 0-0 Nxe4.} Bc5 {
[%emt 0:07:45] 13...Bc5 is better than 13...Nxc3.} 14. Nxe4 {[%emt 0:05:38]}
dxe4 {[%emt 0:01:26]} 15. Kh1 {[%emt 0:00:04] Black should prevent Nb3. The
position is equal.} Re8 {[%emt 0:15:48]} 16. e6 {[%emt 0:00:29]} fxe6 {[%emt 0:
00:00]} 17. f6 {[%emt 0:00:04]} gxf6 {[%emt 0:01:06] White must now prevent ...
f5.} 18. Qg4+ {[%emt 0:00:05]} Kh8 {[%emt 0:00:07]} 19. Qxe4 {[%emt 0:00:05]
[%cal Yc1g5]} e5 {[%emt 0:25:01]} 20. Nxc6 {[%emt 0:00:09]} f5 {[%emt 0:00:56]}
21. Qd5 {[%emt 0:00:08]} Bxc6 {[%emt 0:00:07]} 22. Qxc6 {[%emt 0:00:05]} Qd6 {
[%emt 0:00:05]} 23. Qxd6 {[%emt 0:00:10]} cxd6 {[%emt 0:00:14]} 24. Rxf5 {
[%emt 0:00:04]} Rf8 {[%emt 0:00:15]} 25. g4 {[%emt 0:00:08]} Rxf5 {[%emt 0:00:
00]} 26. gxf5 $11 {[%emt 0:00:05] Endgame KRB-KRB} Rf8 {[%emt 0:00:00]} 27. Bd2
{[%emt 0:00:05]} Rxf5 {[%emt 0:00:09]} 28. b4 {[%emt 0:00:04] [#]} Bb6 $146 {
[%emt 0:17:03]} (28... Bd4 $5 {[%cal Rd4a1]} 29. c3 Bb6 $11) ({Predecessor:} 
28... Bd4 29. c3 Bb6 30. a4 a5 31. Rd1 {½-½ (31) Hohlbein,M (2271)-Boos,M 
(2419) ICCF email 2019}) 29. a4 {[%emt 0:01:30]} e4 {[%emt 0:00:00]} 30. c4 {
[%emt 0:26:45]} (30. a5 $1 $14 Bd4 31. c3) 30... Bd4 {[%emt 0:00:00]} 31. Re1 {
[%emt 0:02:30]} Rf2 {[%emt 0:00:21]} 32. Bg5 {[%emt 0:02:37]} Be5 {[%emt 0:03:
52]} 33. Rxe4 {[%emt 0:02:46]} Rxh2+ {[%emt 0:00:28]} 34. Kg1 {[%emt 0:00:01]}
Ra2 $1 {[%emt 0:00:58]} 35. c5 {[%emt 0:12:00][%cal Yc4c5,Yc5c6] [#] aiming
for c6.} Rxa4 $2 {[%emt 0:00:38] Black cannot hold the game after this.} (35...
Bh2+ $11 {and Black stays safe.} 36. Kh1 dxc5) 36. c6 $18 {[%emt 0:00:55] And
now c7 would win.} Ra1+ $2 {[%emt 0:00:00]} (36... Ra2 37. Rc4 Bh2+ 38. Kf1 d5)
37. Kf2 {[%emt 0:01:32] Threatens to win with c7.} Ra2+ {[%emt 0:00:22]} (37...
Ra3 $142 38. Rc4 Bg3+ 39. Ke2 d5) 38. Re2 {[%emt 0:00:24]} Ra3 {[%emt 0:00:38]}
39. Rc2 {[%emt 0:05:19] White wants to mate with c7.} Rh3 $2 {[%emt 0:00:17]} (
39... Bg3+ 40. Ke2 d5) 40. Rc1 {[%emt 0:04:43] Threatening mate with c7. White
is clearly winning.} d5 {[%emt 0:00:39] [#]} 41. Bf6+ $1 {[%emt 0:31:29]
Deflection} Bxf6 {[%emt 0:30:02]} 42. c7 {[%emt 0:00:08]} Bh4+ {[%emt 0:00:00]}
43. Ke2 {[%emt 0:00:00]} Rh2+ {[%emt 0:00:00]} 44. Kf3 {[%emt 0:00:00]} Rf2+ {
[%emt 0:00:00]} 45. Kg4 {[%emt 0:00:00] Weighted Error Value: White=0.05 
(flawless) /Black=0.33} 1-0

[Event "44th Chess Olympiad Open 2022"]
[Site "Chennai"]
[Date "2022.08.01"]
[Round "4.12"]
[White "Ortiz Suarez, Isan Reynaldo"]
[Black "Banusz, Tamas"]
[Result "1/2-1/2"]
[WhiteElo "2526"]
[BlackElo "2611"]
[Annotator "TA"]
[PlyCount "105"]
[EventDate "2022.??.??"]
[TimeControl "60"]

{[%evp 9,105,32,31,31,30,22,27,31,35,30,26,3,7,0,25,7,29,0,23,0,0,0,0,0,0,0,0,
0,0,-14,0,0,9,6,5,0,16,14,18,11,13,13,43,7,38,32,25,11,13,0,0,0,0,0,0,0,0,0,29,
0,0,0,0,0,32,35,35,35,35,33,27,11,12,0,0,0,0,0,0,0,0,0,0,0,0,0,0,0,0,0,0,0,0,0,
0,0,0,0]} 1. Nf3 {[%emt 0:00:04]} Nf6 {[%emt 0:00:41]} 2. d4 {[%emt 0:00:22]}
d5 {[%emt 0:00:13]} 3. c4 {[%emt 0:00:11]} e6 {[%emt 0:00:14]} 4. Nc3 {[%emt 0:
00:00]} a6 {[%emt 0:00:21]} 5. cxd5 {[%emt 0:01:09]} exd5 {[%emt 0:00:05]} 6.
Bg5 {[%emt 0:00:27][%cal Yc1g5,Yg5h4,Yh4g3] D37: Queen's Gambit Declined: 5
Bf4.} Be6 {[%emt 0:00:28]} 7. e3 {[%emt 0:01:08]} Nbd7 {[%emt 0:00:00]} 8. Bd3
{[%emt 0:01:46] White has an edge.} c6 {[%emt 0:01:21]} 9. Qc2 {[%emt 0:02:49]}
Bd6 {[%emt 0:02:05]} 10. Bh4 {[%emt 0:01:03]} h6 {[%emt 0:00:00]} 11. Bg3 {
[%emt 0:01:27]} Qc7 {[%emt 0:03:56]} 12. O-O {[%emt 0:02:44]} O-O {[%emt 0:05:
01]} 13. b4 {[%emt 0:01:53] [#]} Rfc8 $146 {[%emt 0:07:45]} ({Predecessor:} 
13... Nh5 14. Bxd6 Qxd6 15. Rab1 g6 16. a4 Bg4 17. Nd2 Ng7 18. e4 dxe4 19.
Ncxe4 Qxd4 {0-1 (57) Mendonca,L (2530)-Unuk,L (2346) Sitges 2020}) 14. Rfc1 {
[%emt 0:01:52]} Bxg3 {[%emt 0:05:15]} 15. hxg3 {[%emt 0:00:11]} a5 {[%emt 0:04:
49]} 16. Qb2 {[%emt 0:20:25]} axb4 {[%emt 0:04:05]} 17. Qxb4 {[%emt 0:00:05]}
c5 {[%emt 0:14:04]} 18. dxc5 {[%emt 0:04:56]} Qxc5 {[%emt 0:00:00]} 19. Qd4 {
[%emt 0:13:03]} ({Avoid the trap} 19. Qxb7 $2 Rcb8 20. Qxb8+ Rxb8 $19) 19...
Qxd4 {[%emt 0:04:16]} (19... Qa3 {seems wilder.} 20. Nd2 Nb8 21. Nb3 Nc6) 20.
Nxd4 {[%emt 0:00:25]} Nc5 {[%emt 0:02:27]} 21. Bc2 {[%emt 0:03:48]} Bd7 {
[%emt 0:03:33]} 22. Rab1 {[%emt 0:02:04]} Ne6 {[%emt 0:06:46]} 23. Nde2 {
[%emt 0:08:03]} Nc5 {[%emt 0:01:48]} 24. Rd1 {[%emt 0:06:11]} Be6 {[%emt 0:00:
00]} 25. f3 {[%emt 0:01:00]} Ra3 {[%emt 0:01:43]} 26. Rbc1 {[%emt 0:05:00]} b5
{[%emt 0:08:04]} 27. Nxb5 {[%emt 0:02:27]} Rxa2 {[%emt 0:00:15]} 28. Ned4 {
[%emt 0:04:34]} Bd7 {[%emt 0:04:41]} 29. Nd6 {[%emt 0:02:57]} Rb8 {[%emt 0:00:
00]} 30. Bb1 {[%emt 0:00:44]} Rab2 {[%emt 0:01:53]} 31. Bf5 {[%emt 0:02:15]}
Nb3 {[%emt 0:04:04]} 32. Nxb3 {[%emt 0:04:21]} Bxf5 {[%emt 0:00:21]} 33. Nxf5 {
[%emt 0:01:54]} R2xb3 {[%emt 0:02:41]} 34. Rc7 {[%emt 0:01:06]} Rb1 {[%emt 0:
00:00]} 35. Rxb1 {[%emt 0:00:22]} Rxb1+ $11 {[%emt 0:00:01] Endgame KRN-KRN}
36. Kh2 {[%emt 0:00:15]} Rb8 {[%emt 0:03:17]} 37. g4 {[%emt 0:01:14]} Rd8 {
[%emt 0:00:35]} 38. Kg3 {[%emt 0:00:19]} Kf8 {[%emt 0:00:34]} 39. Ra7 {[%emt 0:
01:38]} Ne8 {[%emt 0:00:39]} 40. Kf4 {[%emt 0:01:32]} Nd6 $1 {[%emt 0:00:00]
The position is equal.} 41. Nxd6 {[%emt 0:30:38]} Rxd6 {[%emt 0:30:04] KR-KR}
42. Ke5 {[%emt 0:00:22]} Rb6 {[%emt 0:00:00]} 43. Ra2 {[%emt 0:00:00]} Rb3 {
[%emt 0:00:00]} 44. Kd4 {[%emt 0:00:00]} Ke7 {[%emt 0:00:00]} 45. f4 {[%emt 0:
00:00]} Ke6 {[%emt 0:00:00]} 46. Ra6+ {[%emt 0:00:00]} Ke7 {[%emt 0:00:00]} 47.
Ra7+ {[%emt 0:00:00]} Ke6 {[%emt 0:00:00]} 48. Ra6+ {[%emt 0:00:00]} Ke7 {
[%emt 0:00:00]} 49. g3 {[%emt 0:00:00]} Rb1 {[%emt 0:00:00]} 50. Ra7+ {[%emt 0:
00:00]} Kf8 {[%emt 0:00:00]} 51. Kxd5 {[%emt 0:00:00]} Rg1 $1 {[%emt 0:00:00]}
52. Ra8+ {[%emt 0:00:00]} Ke7 {[%emt 0:00:00]} 53. Ra7+ {[%emt 0:00:00]
Weighted Error Value: White=0.06 (flawless) /Black=0.05 (flawless)} 1/2-1/2